bitfinex/quotes_BTCUSD_20240911
["timestamp","ask_amount","ask_price","bid_price","bid_amount"]
[1726045337156,2.0686158,56560.0,56559.0,0.38829662]
[1726045337403,2.0686158,56560.0,56559.0,0.37929662]
[1726045337633,2.0686158,56560.0,56559.0,0.74190962]
[1726045337865,2.0686158,56560.0,56559.0,1.1537051]
[1726045338094,2.0033158,56560.0,56559.0,1.1587051]
[1726045338544,2.0033158,56560.0,56559.0,1.1537051]
[1726045338781,2.0033158,56560.0,56559.0,1.1447051]
[1726045339021,2.0033158,56560.0,56559.0,1.08652262]
[1726045339230,2.0033158,56560.0,56559.0,1.09252262]
[1726045339449,2.0033158,56560.0,56559.0,1.08652262]
[1726045339662,2.0043158,56560.0,56559.0,1.08652262]
[1726045341682,2.0043158,56560.0,56559.0,1.73185078]
[1726045341898,2.0043158,56560.0,56559.0,1.85678478]
[1726045342112,2.0043158,56560.0,56559.0,1.86185078]
[1726045342770,2.0043158,56560.0,56559.0,2.21546378]
[1726045343232,1.96726895,56560.0,56559.0,2.42140396]
[1726045343458,1.96726895,56560.0,56559.0,2.45140396]
[1726045343698,1.92212166,56560.0,56559.0,2.45140396]
[1726045343880,1.75245423,56560.0,56559.0,2.45140396]
[1726045344141,1.75327123,56560.0,56559.0,2.45140396]
[1726045345055,1.75227123,56560.0,56559.0,2.45140396]
[1726045345283,1.75227123,56560.0,56559.0,2.45640396]
[1726045345538,1.75227123,56560.0,56559.0,2.46340396]
[1726045345766,1.75227123,56560.0,56559.0,2.45640396]
[1726045346199,1.75227123,56560.0,56559.0,2.47040396]
[1726045346926,1.75227123,56560.0,56559.0,2.45640396]
[1726045347396,1.75227123,56560.0,56559.0,1.71415078]
[1726045347611,1.75227123,56560.0,56559.0,1.44013562]
[1726045347821,1.75227123,56560.0,56559.0,1.45213562]
[1726045348280,1.75227123,56560.0,56559.0,1.45413562]
[1726045348499,1.75227123,56560.0,56559.0,1.08652262]
[1726045348947,1.75227123,56560.0,56559.0,0.74690962]
[1726045349381,1.75227123,56560.0,56559.0,0.544419]
[1726045349832,1.75227123,56560.0,56559.0,0.556419]
[1726045350289,1.75227123,56560.0,56559.0,0.75890962]
[1726045350521,1.75227123,56560.0,56559.0,1.22377538]
[1726045351446,1.75227123,56560.0,56559.0,1.11252262]
[1726045356813,1.75227123,56560.0,56559.0,1.11415662]
[1726045357154,1.75227123,56560.0,56559.0,0.76054362]
[1726045357771,1.75227123,56560.0,56559.0,1.11415662]
[1726045363193,1.75227123,56560.0,56559.0,1.46776962]
[1726045363422,1.75227123,56560.0,56559.0,1.26093358]
[1726045363651,1.75227123,56560.0,56559.0,1.61454658]
[1726045366115,1.75227123,56560.0,56559.0,1.62454658]
[1726045366338,1.75227123,56560.0,56559.0,1.12415662]
[1726045366802,1.75227123,56560.0,56559.0,1.47776962]
[1726045372758,1.75227123,56560.0,56559.0,1.52053818]
[1726045373231,1.75227123,56560.0,56559.0,1.46776962]
[1726045373446,1.75227123,56560.0,56559.0,1.52053818]
[1726045373668,1.75227123,56560.0,56559.0,1.46776962]
[1726045374101,1.75227123,56560.0,56559.0,1.64393917]
[1726045374376,1.75227123,56560.0,56559.0,1.46776962]
[1726045374585,1.75227123,56560.0,56559.0,1.75366102]
[1726045374807,1.75227123,56560.0,56559.0,1.85919815]
[1726045375223,1.75227123,56560.0,56559.0,1.84519815]
[1726045375438,1.75227123,56560.0,56559.0,1.85719815]
[1726045375683,1.75227123,56560.0,56559.0,2.04775198]
[1726045375915,1.75227123,56560.0,56559.0,2.28575198]
[1726045376157,1.6527541,56560.0,56559.0,2.57625515]
[1726045376383,1.6527541,56560.0,56559.0,2.40925515]
[1726045376605,1.6527541,56560.0,56559.0,2.63038375]
[1726045376820,1.6527541,56560.0,56559.0,2.62038375]
[1726045377238,1.6527541,56560.0,56559.0,2.63038375]
[1726045379486,1.6527541,56560.0,56559.0,2.88038375]
[1726045380397,1.6527541,56560.0,56559.0,2.17583057]
[1726045382997,1.5446149,56560.0,56559.0,2.35177075]
[1726045383220,1.5446149,56560.0,56559.0,2.17583057]
[1726045386718,1.5446149,56560.0,56559.0,2.35177075]
[1726045386968,1.5446149,56560.0,56559.0,2.70538375]
[1726045388150,1.5446149,56560.0,56559.0,2.35177075]
[1726045388839,1.5446149,56560.0,56559.0,2.70538375]
[1726045390032,1.5446149,56560.0,56559.0,2.35177075]
[1726045390669,1.5446149,56560.0,56559.0,2.70538375]
[1726045391107,1.5446149,56560.0,56559.0,2.35177075]
[1726045391990,1.5446149,56560.0,56559.0,2.35342165]
[1726045392203,1.5446149,56560.0,56559.0,2.62570118]
[1726045393113,1.5446149,56560.0,56559.0,2.78489788]
[1726045393765,1.5446149,56560.0,56559.0,2.84899788]
[1726045394391,1.5446149,56560.0,56559.0,2.68980118]
[1726045394612,1.52802235,56560.0,56559.0,3.26316041]
[1726045394818,1.52802235,56560.0,56559.0,3.36316041]
[1726045395088,1.51160804,56560.0,56559.0,3.36316041]
[1726045395311,1.51160804,56560.0,56559.0,3.36516041]
[1726045397549,1.51160804,56560.0,56559.0,3.59809194]
[1726045397979,1.51160804,56560.0,56559.0,2.96060118]
[1726045398192,1.51160804,56560.0,56559.0,3.36316041]
[1726045398398,1.51160804,56560.0,56559.0,2.96060118]
[1726045399105,1.30137933,56560.0,56559.0,3.46877341]
[1726045399319,0.59634447,56560.0,56559.0,3.06621418]
[1726045399784,0.59634447,56560.0,56559.0,3.07621418]
[1726045400008,0.38785218,56560.0,56559.0,3.07621418]
[1726045401145,0.0646696,56560.0,56559.0,3.07621418]
[1726045401362,0.000817,56562.0,56561.0,0.6836]
[1726045401564,0.0046149,56573.0,56572.0,0.176765]
[1726045401776,0.0046149,56573.0,56572.0,1.50276954]
[1726045401996,0.0046149,56573.0,56572.0,2.06363937]
[1726045402231,0.0046149,56573.0,56572.0,2.32023514]
[1726045402459,0.0046149,56573.0,56572.0,2.28904515]
[1726045402688,0.0046149,56573.0,56572.0,2.52904515]
[1726045403111,0.0046149,56573.0,56572.0,2.56604515]
[1726045403352,0.0046149,56573.0,56572.0,2.9089174]
[1726045403579,0.0046149,56573.0,56572.0,2.94504966]
[1726045403806,0.000817,56582.0,56581.0,0.560212]
[1726045404072,0.000817,56582.0,56581.0,1.80491492]
[1726045404290,0.000817,56582.0,56581.0,2.44411249]
[1726045404501,0.000817,56582.0,56581.0,2.23781064]
[1726045405448,0.000817,56582.0,56581.0,2.25313142]
[1726045405678,0.000817,56582.0,56581.0,2.31988025]
[1726045405900,0.000817,56582.0,56581.0,1.08549974]
[1726045406126,0.061617,56582.0,56581.0,0.889687]
[1726045406371,0.061617,56582.0,56581.0,0.883687]
[1726045406825,0.061617,56582.0,56581.0,0.901687]
[1726045407033,0.061617,56582.0,56581.0,0.887687]
[1726045407266,0.061617,56582.0,56581.0,0.883687]
[1726045407486,0.061617,56582.0,56581.0,1.38145977]
[1726045407692,0.000817,56582.0,56581.0,1.38845977]
[1726045409024,0.000817,56582.0,56581.0,1.38145977]
[1726045409462,0.000817,56582.0,56581.0,1.38945977]
[1726045409698,0.000817,56582.0,56581.0,1.38445977]
[1726045409897,0.000817,56582.0,56581.0,1.38845977]
[1726045410116,0.000817,56582.0,56581.0,1.39345977]
[1726045414703,0.145917,56582.0,56581.0,0.012]
[1726045415432,0.85206018,56582.0,56581.0,0.007]
[1726045415898,0.1451,56578.0,56575.0,0.176755]
[1726045416118,0.0644,56577.0,56575.0,0.176755]
[1726045416825,0.0644,56577.0,56573.0,0.176762]
[1726045417070,0.353488,56579.0,56571.0,0.176768]
[1726045417071,0.0612,56574.0,56571.0,0.176768]
[1726045417331,0.0612,56574.0,56572.0,0.176765]
[1726045417573,0.0612,56574.0,56572.0,0.176764]
[1726045417809,0.0612,56574.0,56573.0,0.001634]
[1726045418050,0.0612,56574.0,56573.0,0.531921]
[1726045418291,0.0612,56574.0,56573.0,0.885446]
[1726045419705,0.0612,56574.0,56573.0,0.886446]
[1726045419937,0.0632,56574.0,56573.0,0.886446]
[1726045420172,0.0632,56574.0,56573.0,0.885446]
[1726045420622,0.0642,56574.0,56573.0,0.886446]
[1726045423128,0.0642,56574.0,56573.0,1.239971]
[1726045423370,0.0642,56574.0,56573.0,1.38414937]
[1726045425147,0.0642,56574.0,56573.0,1.239971]
[1726045426652,0.0612,56574.0,56573.0,1.238971]
[1726045427075,0.0612,56574.0,56573.0,1.244971]
[1726045428401,0.0612,56574.0,56573.0,1.242971]
[1726045428853,0.0612,56574.0,56573.0,1.238971]
[1726045429110,0.0612,56574.0,56573.0,1.3628681]
[1726045429355,0.0612,56574.0,56573.0,1.3708681]
[1726045430040,0.1432,56574.0,56573.0,0.009634]
[1726045430688,1.05123092,56574.0,56573.0,0.009634]
[1726045430927,1.40474992,56574.0,56573.0,0.006634]
[1726045431427,1.20393718,56574.0,56573.0,0.007634]
[1726045431889,0.49689918,56574.0,56573.0,0.007634]
[1726045432578,0.1432,56574.0,56573.0,0.001634]
[1726045432824,0.1432,56574.0,56573.0,0.179396]
[1726045433042,0.0642,56574.0,56573.0,0.887446]
[1726045433474,0.0612,56574.0,56573.0,0.001634]
[1726045433765,0.1458,56574.0,56573.0,0.003634]
[1726045433974,0.49849918,56574.0,56573.0,0.003634]
[1726045435107,0.32174018,56574.0,56573.0,0.003634]
[1726045436011,0.33354018,56574.0,56573.0,0.003634]
[1726045436276,0.33354018,56574.0,56573.0,0.533921]
[1726045436277,0.1576,56574.0,56573.0,0.533921]
[1726045436490,0.1546,56574.0,56573.0,0.001634]
[1726045436918,0.1576,56574.0,56573.0,0.002634]
[1726045437130,0.1556,56574.0,56573.0,0.002634]
[1726045437364,0.332359,56574.0,56573.0,0.002634]
[1726045437653,0.1566,56574.0,56573.0,0.002634]
[1726045437876,0.1546,56574.0,56573.0,0.001634]
[1726045439268,0.1576,56574.0,56573.0,0.178396]
[1726045439498,0.074,56574.0,56573.0,0.001634]
[1726045439725,0.075,56574.0,56573.0,0.001634]
[1726045439940,0.076,56574.0,56573.0,0.002634]
[1726045440169,0.252759,56574.0,56573.0,0.002634]
[1726045440386,0.076,56574.0,56573.0,0.002634]
[1726045441789,0.076817,56574.0,56573.0,0.002634]
[1726045444947,0.076817,56574.0,56573.0,0.179396]
[1726045445174,0.076817,56574.0,56573.0,0.002634]
[1726045445669,0.253576,56574.0,56573.0,0.002634]
[1726045447065,0.076817,56574.0,56573.0,0.179396]
[1726045447292,0.076817,56574.0,56573.0,0.002634]
[1726045448183,0.077417,56574.0,56573.0,0.179396]
[1726045448609,0.077417,56574.0,56573.0,0.002634]
[1726045450396,0.015617,56574.0,56573.0,0.179396]
[1726045450639,0.015617,56574.0,56573.0,0.95648073]
[1726045450877,0.015617,56574.0,56573.0,1.31000573]
[1726045451763,0.014617,56574.0,56573.0,1.30900573]
[1726045451978,0.012617,56574.0,56573.0,1.30900573]
[1726045452213,0.013617,56574.0,56573.0,1.30900573]
[1726045452454,0.015617,56574.0,56573.0,1.30900573]
[1726045453859,0.015617,56574.0,56573.0,1.48135714]
[1726045455227,0.015617,56574.0,56573.0,1.68324501]
[1726045455444,0.015617,56574.0,56573.0,2.07852883]
[1726045455666,0.015617,56574.0,56573.0,2.43205383]
[1726045455901,0.015617,56574.0,56573.0,2.45851794]
[1726045456133,0.013617,56574.0,56573.0,2.32619741]
[1726045456388,0.012617,56574.0,56573.0,2.45851794]
[1726045456606,0.012617,56574.0,56573.0,2.46251794]
[1726045456948,0.012617,56574.0,56573.0,2.46051794]
[1726045457256,0.012617,56574.0,56573.0,2.47451794]
[1726045457712,0.012617,56574.0,56573.0,2.34219741]
[1726045457940,0.012617,56574.0,56573.0,2.47260418]
[1726045458169,0.012617,56574.0,56573.0,2.34019741]
[1726045458411,0.012617,56574.0,56573.0,2.3391697]
[1726045458888,0.012617,56574.0,56573.0,2.3531697]
[1726045459126,0.012617,56574.0,56573.0,2.3391697]
[1726045459590,0.012617,56574.0,56573.0,2.3531697]
[1726045459816,0.012617,56574.0,56573.0,2.56110988]
[1726045460058,0.000817,56582.0,56581.0,0.592812]
[1726045460303,0.000817,56582.0,56581.0,1.31515007]
[1726045460532,0.000817,56582.0,56581.0,1.69509215]
[1726045461528,0.000817,56582.0,56581.0,1.59316169]
[1726045461980,0.000817,56582.0,56581.0,1.70509215]
[1726045462205,0.000817,56582.0,56581.0,1.87744356]
[1726045462680,0.000817,56582.0,56581.0,1.3554381]
[1726045462930,0.000817,56582.0,56581.0,1.06603841]
[1726045463855,0.000817,56582.0,56581.0,0.893687]
[1726045464077,0.000817,56582.0,56581.0,1.113687]
[1726045464293,0.000817,56582.0,56581.0,1.109687]
[1726045464516,0.001817,56582.0,56581.0,1.109687]
[1726045464764,0.001817,56582.0,56581.0,0.883687]
[1726045465469,0.001817,56582.0,56581.0,0.530212]
[1726045465696,0.003817,56582.0,56581.0,0.530212]
[1726045465923,0.003817,56582.0,56581.0,1.237162]
[1726045466146,0.003817,56582.0,56581.0,1.43904987]
[1726045466399,0.003817,56582.0,56581.0,1.49198984]
[1726045466628,0.001817,56582.0,56581.0,1.49198984]
[1726045466870,0.001817,56582.0,56581.0,1.43904987]
[1726045467108,0.001817,56582.0,56581.0,2.18900742]
[1726045467348,0.001817,56582.0,56581.0,2.26835123]
[1726045467600,0.001817,56582.0,56581.0,1.98030451]
[1726045467815,0.001817,56582.0,56581.0,2.26825689]
[1726045468042,0.000817,56582.0,56581.0,2.26825689]
[1726045468282,0.001817,56582.0,56581.0,2.26825689]
[1726045468528,0.001817,56582.0,56581.0,2.77822675]
[1726045468772,0.000817,56582.0,56581.0,2.77822675]
[1726045469263,0.000817,56582.0,56581.0,2.90828698]
[1726045469496,0.003817,56582.0,56581.0,2.83469674]
[1726045469720,0.001817,56582.0,56581.0,2.7023468]
[1726045469940,0.001817,56582.0,56581.0,2.80469674]
[1726045469941,0.000817,56582.0,56581.0,2.80469674]
[1726045470274,0.000817,56582.0,56581.0,2.81669674]
[1726045470525,0.000817,56582.0,56581.0,2.6723468]
[1726045470744,0.000817,56582.0,56581.0,2.6803468]
[1726045470972,0.000817,56582.0,56581.0,2.6723468]
[1726045471391,0.000817,56582.0,56581.0,2.6863468]
[1726045471623,0.000817,56582.0,56581.0,2.8185363]
[1726045471841,0.000817,56582.0,56581.0,2.6963468]
[1726045472358,0.000817,56582.0,56581.0,2.6863468]
[1726045472591,0.000817,56582.0,56581.0,2.92228698]
[1726045472819,0.000817,56582.0,56581.0,2.2150125]
[1726045473276,0.000817,56582.0,56581.0,2.02321942]
[1726045473498,0.000817,56582.0,56581.0,2.63404269]
[1726045473723,0.000817,56582.0,56581.0,2.73977426]
[1726045473963,0.000817,56582.0,56581.0,2.63404269]
[1726045474185,0.000817,56582.0,56581.0,3.00214734]
[1726045474625,0.000817,56582.0,56581.0,2.86998287]
[1726045475079,0.000817,56591.0,56590.0,0.530128]
[1726045475324,0.000817,56591.0,56590.0,0.5831408]
[1726045475552,0.000817,56591.0,56590.0,2.03758567]
[1726045476006,0.000817,56591.0,56590.0,2.09043735]
[1726045476279,0.000817,56591.0,56590.0,2.03758567]
[1726045476499,0.000817,56591.0,56590.0,2.04958567]
[1726045476728,0.000817,56591.0,56590.0,2.10240677]
[1726045477629,0.000817,56591.0,56590.0,2.04958567]
[1726045478805,0.000817,56591.0,56590.0,1.69616667]
[1726045479283,0.000817,56591.0,56590.0,2.04958567]
[1726045479515,0.000817,56591.0,56590.0,2.30552585]
[1726045479729,0.000817,56591.0,56590.0,2.36552585]
[1726045479970,0.000817,56591.0,56590.0,2.44480337]
[1726045480199,0.000817,56591.0,56590.0,2.73014748]
[1726045481057,0.000817,56591.0,56590.0,1.63364391]
[1726045481499,0.000817,56591.0,56590.0,1.58085387]
[1726045481731,0.000817,56591.0,56590.0,0.895547]
[1726045489748,0.000817,56591.0,56590.0,0.542128]
[1726045489972,0.146317,56591.0,56590.0,0.012]
[1726045490178,0.16281516,56591.0,56590.0,0.542128]
[1726045491084,0.16281516,56591.0,56590.0,0.895547]
[1726045491606,0.146317,56591.0,56590.0,0.895547]
[1726045491832,0.000817,56591.0,56590.0,1.3738637]
[1726045495701,0.000817,56591.0,56590.0,1.248966]
[1726045495929,0.000817,56591.0,56590.0,0.895547]
[1726045496390,0.143817,56591.0,56590.0,0.895547]
[1726045496860,0.143817,56591.0,56590.0,0.188709]
[1726045497077,0.16023204,56591.0,56590.0,0.188709]
[1726045498013,0.16023204,56591.0,56590.0,0.542128]
[1726045499350,0.16023204,56591.0,56590.0,0.895547]
[1726045499839,0.143817,56591.0,56590.0,0.895547]
[1726045500078,0.16023357,56591.0,56590.0,0.895547]
[1726045500552,0.01723357,56591.0,56590.0,1.37915713]
[1726045500783,0.01723357,56591.0,56590.0,1.248966]
[1726045501855,0.000817,56591.0,56590.0,1.248966]
[1726045502090,0.01727569,56591.0,56590.0,1.248966]
[1726045502312,0.01727606,56591.0,56590.0,1.30189329]
[1726045502736,0.01727606,56591.0,56590.0,1.42513555]
[1726045502951,0.000817,56591.0,56590.0,1.61544198]
[1726045503360,0.000817,56591.0,56590.0,1.53605105]
[1726045503788,0.000817,56591.0,56590.0,1.64190563]
[1726045503993,0.000817,56591.0,56590.0,1.32839636]
[1726045504205,0.000817,56591.0,56590.0,1.61587959]
[1726045504412,0.000817,56591.0,56590.0,1.53644923]
[1726045504621,0.000817,56591.0,56590.0,1.64230381]
[1726045505722,0.000817,56591.0,56590.0,1.66876745]
[1726045506167,0.000817,56591.0,56590.0,1.64239085]
[1726045506384,0.000817,56591.0,56590.0,1.66876745]
[1726045506605,0.000817,56591.0,56590.0,1.53644923]
[1726045507010,0.000817,56591.0,56590.0,1.64239597]
[1726045507246,0.000817,56591.0,56590.0,1.66876745]
[1726045507879,0.000817,56591.0,56590.0,1.71261878]
[1726045508178,0.000817,56591.0,56590.0,1.66876745]
[1726045509253,0.000817,56591.0,56590.0,1.66880434]
[1726045509505,0.000817,56591.0,56590.0,1.73825127]
[1726045509985,0.000817,56591.0,56590.0,2.31167027]
[1726045510223,0.0046149,56595.0,56592.0,0.530109]
[1726045510465,0.0046149,56595.0,56592.0,1.5243184]
[1726045510941,0.0046149,56595.0,56592.0,1.8777244]
[1726045511368,0.0046149,56595.0,56592.0,1.8807244]
[1726045511568,0.0046149,56595.0,56592.0,1.8857244]
[1726045511801,0.0046149,56595.0,56592.0,2.03109929]
[1726045512875,0.0046149,56595.0,56592.0,2.13109929]
[1726045515144,0.0046149,56595.0,56592.0,2.8193746]
[1726045515385,0.0046149,56595.0,56592.0,2.89811887]
[1726045515602,0.0046149,56595.0,56592.0,2.38572318]
[1726045515844,0.0046149,56595.0,56592.0,2.41572318]
[1726045516497,0.0046149,56595.0,56592.0,2.83112918]
[1726045516723,0.0046149,56595.0,56592.0,3.46815433]
[1726045517395,0.0046149,56595.0,56592.0,2.83112918]
[1726045517831,0.0046149,56595.0,56592.0,2.82912918]
[1726045518042,0.0046149,56595.0,56592.0,3.23348554]
[1726045518252,0.0046149,56595.0,56592.0,2.83112918]
[1726045518479,0.0046149,56595.0,56592.0,2.82912918]
[1726045519329,0.0046149,56595.0,56592.0,2.47572318]
[1726045521158,0.0046149,56595.0,56592.0,2.82912918]
[1726045521267,0.0046149,56595.0,56592.0,2.47572318]
[1726045521728,0.0046149,56595.0,56592.0,2.82912918]
[1726045521955,0.0046149,56595.0,56592.0,2.83112918]
[1726045522655,0.0046149,56595.0,56594.0,0.88697887]
[1726045522867,0.0046149,56595.0,56594.0,1.97988]
[1726045523080,0.0046149,56595.0,56594.0,2.333274]
[1726045523297,0.0046149,56595.0,56594.0,3.040062]
[1726045523967,0.0046149,56595.0,56594.0,3.0478878]
[1726045525068,0.0046149,56595.0,56594.0,3.28238591]
[1726045525298,0.0024988,56606.0,56605.0,0.529987]
[1726045525518,0.0024988,56606.0,56605.0,1.1329427]
[1726045525733,0.0024988,56606.0,56605.0,1.8395927]
[1726045525952,0.0024988,56606.0,56605.0,2.08707307]
[1726045527113,0.0024988,56606.0,56605.0,2.61633825]
[1726045527343,0.0024988,56606.0,56605.0,2.79394974]
[1726045527600,0.0024988,56606.0,56605.0,2.79385132]
[1726045527834,0.0024988,56606.0,56605.0,3.14717552]
[1726045528066,0.0024988,56606.0,56605.0,3.20717552]
[1726045528294,0.0024988,56606.0,56605.0,2.6971828]
[1726045528531,0.0024988,56606.0,56605.0,3.0605078]
[1726045529046,0.0024988,56606.0,56605.0,3.0505078]
[1726045529269,8e-07,56606.0,56605.0,3.15245431]
[1726045529501,8e-07,56606.0,56605.0,3.14145431]
[1726045530374,8e-07,56606.0,56605.0,3.15545431]
[1726045530806,8e-07,56606.0,56605.0,3.16945431]
[1726045532492,0.0636,56613.0,56612.0,0.529921]
[1726045532738,0.0636,56613.0,56612.0,1.18508987]
[1726045532953,0.079,56616.0,56615.0,0.529894]
[1726045532954,0.1426,56616.0,56615.0,0.529894]
[1726045533174,0.1426,56616.0,56615.0,1.23642]
[1726045533409,0.0636,56616.0,56615.0,1.3985315]
[1726045534624,0.0636,56616.0,56615.0,1.4045315]
[1726045534840,0.0636,56616.0,56615.0,1.4125315]
[1726045535066,0.062,56619.0,56616.0,0.529885]
[1726045535288,0.062,56619.0,56616.0,0.73177287]
[1726045535523,0.062,56619.0,56616.0,1.55227709]
[1726045536702,0.062,56619.0,56616.0,1.55727709]
[1726045537371,0.062,56619.0,56616.0,1.56427709]
[1726045538039,0.062,56619.0,56616.0,1.45028687]
[1726045548395,0.139317,56617.0,56616.0,1.248399]
[1726045549778,0.139317,56617.0,56616.0,0.895142]
[1726045552295,0.139317,56617.0,56616.0,0.888142]
[1726045552547,0.139317,56617.0,56616.0,0.890142]
[1726045552976,0.139317,56617.0,56616.0,0.885142]
[1726045553422,0.139317,56617.0,56616.0,0.886142]
[1726045553688,0.139317,56617.0,56616.0,0.003]
[1726045553911,0.49188218,56617.0,56616.0,0.002]
[1726045554147,0.17675718,56617.0,56616.0,0.001]
[1726045554382,0.35338218,56617.0,56616.0,0.003]
[1726045554647,0.49278218,56617.0,56616.0,0.002]
[1726045554887,0.0635,56616.0,56613.0,0.176637]
[1726045555126,0.0635,56616.0,56615.0,0.529894]
[1726045555348,0.0635,56616.0,56615.0,0.176631]
[1726045556708,0.0635,56616.0,56615.0,0.529894]
[1726045556940,0.0635,56616.0,56615.0,0.176631]
[1726045557409,0.0645,56616.0,56615.0,0.6182116]
[1726045557689,0.0645,56616.0,56615.0,0.883157]
[1726045562072,0.0645,56616.0,56615.0,1.23642]
[1726045562297,0.001,56616.0,56615.0,1.28926616]
[1726045562506,0.001,56616.0,56615.0,1.2893473]
[1726045562721,0.001,56616.0,56615.0,1.41258955]
[1726045563159,0.001,56616.0,56615.0,1.61427201]
[1726045564251,0.001,56616.0,56615.0,1.53488106]
[1726045564457,0.001,56616.0,56615.0,1.64073566]
[1726045567338,0.001,56616.0,56615.0,1.53488106]
[1726045567832,0.001,56616.0,56615.0,1.26105278]
[1726045567833,0.0614,56616.0,56615.0,1.26105278]
[1726045568056,0.0614,56616.0,56615.0,0.883157]
[1726045568274,0.0614,56616.0,56615.0,0.96259172]
[1726045568492,0.0614,56616.0,56615.0,1.2631153]
[1726045568702,0.0614,56616.0,56615.0,1.26313058]
[1726045568926,0.0614,56616.0,56615.0,1.28959343]
[1726045569128,0.0614,56616.0,56615.0,1.64285643]
[1726045569771,0.0614,56616.0,56615.0,1.53694358]
[1726045570217,0.0614,56616.0,56615.0,1.66926183]
[1726045572149,0.0614,56616.0,56615.0,0.9363782]
[1726045572368,0.0614,56616.0,56615.0,0.83041758]
[1726045572576,0.0614,56616.0,56615.0,0.90983719]
[1726045572805,0.0614,56616.0,56615.0,1.26310019]
[1726045573013,0.0614,56616.0,56615.0,0.90983719]
[1726045573456,0.0614,56616.0,56612.0,0.13246229]
[1726045573457,0.25211337,56616.0,56612.0,0.05298783]
[1726045573676,0.353288,56611.0,56608.0,0.05298783]
[1726045573904,0.353288,56611.0,56606.0,0.05462183]
[1726045573905,0.237153,56608.0,56606.0,0.05462183]
[1726045574122,0.237156,56607.0,56606.0,0.001634]
[1726045574349,0.0605,56607.0,56606.0,0.001634]
[1726045574998,0.315756,56607.0,56606.0,0.001634]
[1726045576364,0.315756,56607.0,56606.0,0.00157189]
[1726045576808,0.320756,56607.0,56606.0,0.00157189]
[1726045577233,0.41075512,56607.0,56606.0,0.00157189]
[1726045577653,0.1491,56607.0,56606.0,0.00157189]
[1726045581932,0.325756,56607.0,56606.0,0.00157189]
[1726045582141,0.679069,56607.0,56606.0,0.00157189]
[1726045583482,0.85500918,56607.0,56606.0,0.00157189]
[1726045584349,1.20832218,56607.0,56606.0,0.00157189]
[1726045586789,1.20913918,56607.0,56606.0,0.00157189]
[1726045588303,0.85582618,56607.0,56606.0,0.00157189]
[1726045588534,0.50251318,56607.0,56606.0,0.00157189]
[1726045588959,0.85582618,56607.0,56606.0,0.00157189]
[1726045596600,0.50251318,56607.0,56606.0,0.00157189]
[1726045596820,0.85582618,56607.0,56606.0,0.00157189]
[1726045597046,0.50251318,56607.0,56606.0,0.00157189]
[1726045597263,0.85582618,56607.0,56606.0,0.00157189]
[1726045597487,0.32585718,56607.0,56606.0,0.00157189]
[1726045597707,0.42391318,56607.0,56606.0,0.00157189]
[1726045597932,0.071317,56607.0,56606.0,0.17823089]
[1726045598234,0.071317,56607.0,56606.0,0.94966889]
[1726045598235,0.010817,56607.0,56606.0,0.94966889]
[1726045605701,0.005817,56607.0,56606.0,0.94966889]
[1726045605969,0.003817,56607.0,56606.0,0.94966889]
[1726045606409,0.005817,56607.0,56606.0,0.94966889]
[1726045607291,0.005817,56607.0,56606.0,1.14966889]
[1726045608985,0.005817,56607.0,56606.0,1.50298789]
[1726045609207,0.005817,56607.0,56606.0,1.93217263]
[1726045609430,0.005817,56607.0,56606.0,1.08486889]
[1726045610116,0.005817,56607.0,56606.0,0.73154989]
[1726045610340,0.24495718,56607.0,56606.0,0.20157189]
[1726045610571,0.49761318,56607.0,56606.0,0.00157189]
[1726045610788,1.20423918,56607.0,56606.0,0.00157189]
[1726045611048,1.40592513,56607.0,56606.0,0.00157189]
[1726045612620,1.46233288,56607.0,56606.0,0.00157189]
[1726045613096,2.12181543,56607.0,56606.0,0.00157189]
[1726045613567,2.47512843,56607.0,56606.0,0.00157189]
[1726045613788,2.47712843,56607.0,56606.0,0.00157189]
[1726045614003,2.12381543,56607.0,56606.0,0.00157189]
[1726045614215,2.12181543,56607.0,56606.0,0.00157189]
[1726045614422,2.14950311,56607.0,56606.0,0.00157189]
[1726045614849,2.14650311,56607.0,56606.0,0.00157189]
[1726045615065,2.15450311,56607.0,56606.0,0.00257189]
[1726045615284,2.50781611,56607.0,56606.0,0.00257189]
[1726045615705,2.49981611,56607.0,56606.0,0.00157189]
[1726045615931,2.51481611,56607.0,56606.0,0.00357189]
[1726045618344,2.16150311,56607.0,56606.0,0.00357189]
[1726045618560,1.95981716,56607.0,56606.0,0.00357189]
[1726045618780,2.16150311,56607.0,56606.0,0.00357189]
[1726045618991,2.51481611,56607.0,56606.0,0.00357189]
[1726045619650,1.98333356,56607.0,56606.0,0.00357189]
[1726045620106,1.95564588,56607.0,56606.0,0.00357189]
[1726045620342,1.37064693,56607.0,56606.0,0.00357189]
[1726045621729,1.36264693,56607.0,56606.0,0.00257189]
[1726045621919,1.37064693,56607.0,56606.0,0.00357189]
[1726045622177,1.54681648,56607.0,56606.0,0.00357189]
[1726045622400,1.53181648,56607.0,56606.0,0.00157189]
[1726045622632,1.53781648,56607.0,56606.0,0.00257189]
[1726045622861,1.54581648,56607.0,56606.0,0.00357189]
[1726045623109,1.53981648,56607.0,56606.0,0.00257189]
[1726045623341,1.54581648,56607.0,56606.0,0.00357189]
[1726045629712,1.36964693,56607.0,56606.0,0.00357189]
[1726045630619,0.19075718,56607.0,56606.0,0.00357189]
[1726045630842,0.19075718,56607.0,56606.0,0.18023089]
[1726045631063,0.19075718,56607.0,56606.0,0.00357189]
[1726045631540,0.19075718,56607.0,56606.0,0.18023089]
[1726045631790,0.19075718,56607.0,56606.0,0.00357189]
[1726045632036,0.19075718,56607.0,56606.0,0.18023089]
[1726045632468,0.19075718,56607.0,56606.0,0.00357189]
[1726045634887,0.19075718,56607.0,56606.0,0.53354989]
[1726045635125,0.19075718,56607.0,56606.0,0.18023089]
[1726045635975,0.36741318,56607.0,56606.0,0.00357189]
[1726045636701,0.19075718,56607.0,56606.0,0.00357189]
[1726045636928,0.19075718,56607.0,56606.0,0.53354989]
[1726045637142,0.19075718,56607.0,56606.0,0.18023089]
[1726045637358,0.19075718,56607.0,56606.0,0.00357189]
[1726045640468,0.19065718,56607.0,56606.0,0.00357189]
[1726045640679,0.18975718,56607.0,56606.0,0.00357189]
[1726045640903,0.18975718,56607.0,56606.0,0.18023089]
[1726045641362,0.014,56607.0,56606.0,0.95086889]
[1726045641585,0.014,56607.0,56606.0,1.08212568]
[1726045641586,0.0131,56607.0,56606.0,1.08212568]